Workbook

Sheet Начало
B1: Об этом шаблоне
B2: Отслеживайте свои месячные расходы и сбережения с помощью этого шаблона.
B3: Введите в таблице сведения о расходах и месячный доход, чтобы вычислить сбережения.
B4: Кольцевая диаграмма, иллюстрирующая расходы и сбережения, обновляется автоматически.
B5: Примечание.
B6: В столбце A листа "Колесо бюджета" содержатся дополнительные инструкции. Их текст намерено скрыт. Чтобы удалить этот текст, выделите столбец A и нажмите клавишу DELETE. Чтобы отобразить текст, выделите столбец A и измените цвет шрифта.
B7: Чтобы получить дополнительные сведения о конкретной таблице, щелкните в ней ячейку, нажмите клавиши SHIFT+F10 и выберите пункт «Таблица», а затем — «Замещающий текст».

Sheet Бюджетное кольцо
B1: Бюджетное кольцо | D1: Заполните таблицу в этом шаблоне. Диаграмма отобразит месячные расходы относительно вашего месячного дохода. В ней также будут рассчитаны процентные значения, демонстрирующие размер ваших сбережений.
B2: Месячный доход | G2: Сбережения Сумма
B3: 5,738 ₽ | G3: =Сбережения -> 2,777 ₽
G4: Значение вычисляется автоматически
B6: Расходы | C6: Категория | D6: Сумма | E6: Периодичность | F6: Месячная сумма | G6: % общей суммы
B7: Страхование | C7: Транспорт | D7: 300 ₽ | E7: Каждые 6 месяцев | F7: =IF(Расходы[[#This Row],[Сумма]]>0,IF(Расходы[[#This Row],[Периодичность]]<>"",ROUND(IF(Расходы[[#This Row],[Периодичность]]="Ежемесячно",Расходы[Сумма],IF(Расходы[[#This Row],[Периодичность]]="Еженедельно",Расходы[[#This Row],[Сумма]]*4,IF(Расходы[[#This Row],[Периодичность]]="Ежеквартально",Расходы[[#This Row],[Сумма]]/3,IF(Расходы[[#This Row],[Периодичность]]="Каждые 6 месяцев",Расходы[[#This Row],[Сумма]]/6,IF(Расходы[[#This Row],[Периодичность]]="За год",Расходы[[#This Row],[Сумма]]/12,IF(Расходы[[#This Row],[Периодичность]]="Каждые 2 недели",Расходы[[#This Row],[Сумма]]*2,IF(Расходы[[#This Row],[Периодичность]]="Каждые 2 месяца",Расходы[[#This Row],[Сумма]]/2,""))))))),0),""),"") -> 50 ₽ | G7: =IF(Расходы[[#This Row],[Месячная сумма]]<>"",Расходы[[#This Row],[Месячная сумма]]/Доходы,"") -> 1%
B8: Газ | C8: Транспорт | D8: 25 ₽ | E8: Еженедельно | F8: =IF(Расходы[[#This Row],[Сумма]]>0,IF(Расходы[[#This Row],[Периодичность]]<>"",ROUND(IF(Расходы[[#This Row],[Периодичность]]="Ежемесячно",Расходы[Сумма],IF(Расходы[[#This Row],[Периодичность]]="Еженедельно",Расходы[[#This Row],[Сумма]]*4,IF(Расходы[[#This Row],[Периодичность]]="Ежеквартально",Расходы[[#This Row],[Сумма]]/3,IF(Расходы[[#This Row],[Периодичность]]="Каждые 6 месяцев",Расходы[[#This Row],[Сумма]]/6,IF(Расходы[[#This Row],[Периодичность]]="За год",Расходы[[#This Row],[Сумма]]/12,IF(Расходы[[#This Row],[Периодичность]]="Каждые 2 недели",Расходы[[#This Row],[Сумма]]*2,IF(Расходы[[#This Row],[Периодичность]]="Каждые 2 месяца",Расходы[[#This Row],[Сумма]]/2,""))))))),0),""),"") -> 100 ₽ | G8: =IF(Расходы[[#This Row],[Месячная сумма]]<>"",Расходы[[#This Row],[Месячная сумма]]/Доходы,"") -> 2%
B9: Платеж за автомобиль | C9: Транспорт | D9: 200 ₽ | E9: Ежемесячно | F9: =IF(Расходы[[#This Row],[Сумма]]>0,IF(Расходы[[#This Row],[Периодичность]]<>"",ROUND(IF(Расходы[[#This Row],[Периодичность]]="Ежемесячно",Расходы[Сумма],IF(Расходы[[#This Row],[Периодичность]]="Еженедельно",Расходы[[#This Row],[Сумма]]*4,IF(Расходы[[#This Row],[Периодичность]]="Ежеквартально",Расходы[[#This Row],[Сумма]]/3,IF(Расходы[[#This Row],[Периодичность]]="Каждые 6 месяцев",Расходы[[#This Row],[Сумма]]/6,IF(Расходы[[#This Row],[Периодичность]]="За год",Расходы[[#This Row],[Сумма]]/12,IF(Расходы[[#This Row],[Периодичность]]="Каждые 2 недели",Расходы[[#This Row],[Сумма]]*2,IF(Расходы[[#This Row],[Периодичность]]="Каждые 2 месяца",Расходы[[#This Row],[Сумма]]/2,""))))))),0),""),"") -> 200 ₽ | G9: =IF(Расходы[[#This Row],[Месячная сумма]]<>"",Расходы[[#This Row],[Месячная сумма]]/Доходы,"") -> 3%
B10: Ипотека | C10: Дом | D10: 1,600 ₽ | E10: Ежемесячно | F10: =IF(Расходы[[#This Row],[Сумма]]>0,IF(Расходы[[#This Row],[Периодичность]]<>"",ROUND(IF(Расходы[[#This Row],[Периодичность]]="Ежемесячно",Расходы[Сумма],IF(Расходы[[#This Row],[Периодичность]]="Еженедельно",Расходы[[#This Row],[Сумма]]*4,IF(Расходы[[#This Row],[Периодичность]]="Ежеквартально",Расходы[[#This Row],[Сумма]]/3,IF(Расходы[[#This Row],[Периодичность]]="Каждые 6 месяцев",Расходы[[#This Row],[Сумма]]/6,IF(Расходы[[#This Row],[Периодичность]]="За год",Расходы[[#This Row],[Сумма]]/12,IF(Расходы[[#This Row],[Периодичность]]="Каждые 2 недели",Расходы[[#This Row],[Сумма]]*2,IF(Расходы[[#This Row],[Периодичность]]="Каждые 2 месяца",Расходы[[#This Row],[Сумма]]/2,""))))))),0),""),"") -> 1,600 ₽ | G10: =IF(Расходы[[#This Row],[Месячная сумма]]<>"",Расходы[[#This Row],[Месячная сумма]]/Доходы,"") -> 28%
B11: Кабельное ТВ | C11: Дом | D11: 60 ₽ | E11: Ежемесячно | F11: =IF(Расходы[[#This Row],[Сумма]]>0,IF(Расходы[[#This Row],[Периодичность]]<>"",ROUND(IF(Расходы[[#This Row],[Периодичность]]="Ежемесячно",Расходы[Сумма],IF(Расходы[[#This Row],[Периодичность]]="Еженедельно",Расходы[[#This Row],[Сумма]]*4,IF(Расходы[[#This Row],[Периодичность]]="Ежеквартально",Расходы[[#This Row],[Сумма]]/3,IF(Расходы[[#This Row],[Периодичность]]="Каждые 6 месяцев",Расходы[[#This Row],[Сумма]]/6,IF(Расходы[[#This Row],[Периодичность]]="За год",Расходы[[#This Row],[Сумма]]/12,IF(Расходы[[#This Row],[Периодичность]]="Каждые 2 недели",Расходы[[#This Row],[Сумма]]*2,IF(Расходы[[#This Row],[Периодичность]]="Каждые 2 месяца",Расходы[[#This Row],[Сумма]]/2,""))))))),0),""),"") -> 60 ₽ | G11: =IF(Расходы[[#This Row],[Месячная сумма]]<>"",Расходы[[#This Row],[Месячная сумма]]/Доходы,"") -> 1%
B12: Вечер кино | C12: Развлечения | D12: 70 ₽ | E12: Ежемесячно | F12: =IF(Расходы[[#This Row],[Сумма]]>0,IF(Расходы[[#This Row],[Периодичность]]<>"",ROUND(IF(Расходы[[#This Row],[Периодичность]]="Ежемесячно",Расходы[Сумма],IF(Расходы[[#This Row],[Периодичность]]="Еженедельно",Расходы[[#This Row],[Сумма]]*4,IF(Расходы[[#This Row],[Периодичность]]="Ежеквартально",Расходы[[#This Row],[Сумма]]/3,IF(Расходы[[#This Row],[Периодичность]]="Каждые 6 месяцев",Расходы[[#This Row],[Сумма]]/6,IF(Расходы[[#This Row],[Периодичность]]="За год",Расходы[[#This Row],[Сумма]]/12,IF(Расходы[[#This Row],[Периодичность]]="Каждые 2 недели",Расходы[[#This Row],[Сумма]]*2,IF(Расходы[[#This Row],[Периодичность]]="Каждые 2 месяца",Расходы[[#This Row],[Сумма]]/2,""))))))),0),""),"") -> 70 ₽ | G12: =IF(Расходы[[#This Row],[Месячная сумма]]<>"",Расходы[[#This Row],[Месячная сумма]]/Доходы,"") -> 1%
B13: Полукеды | C13: Проч. | D13: 300 ₽ | E13: За год | F13: =IF(Расходы[[#This Row],[Сумма]]>0,IF(Расходы[[#This Row],[Периодичность]]<>"",ROUND(IF(Расходы[[#This Row],[Периодичность]]="Ежемесячно",Расходы[Сумма],IF(Расходы[[#This Row],[Периодичность]]="Еженедельно",Расходы[[#This Row],[Сумма]]*4,IF(Расходы[[#This Row],[Периодичность]]="Ежеквартально",Расходы[[#This Row],[Сумма]]/3,IF(Расходы[[#This Row],[Периодичность]]="Каждые 6 месяцев",Расходы[[#This Row],[Сумма]]/6,IF(Расходы[[#This Row],[Периодичность]]="За год",Расходы[[#This Row],[Сумма]]/12,IF(Расходы[[#This Row],[Периодичность]]="Каждые 2 недели",Расходы[[#This Row],[Сумма]]*2,IF(Расходы[[#This Row],[Периодичность]]="Каждые 2 месяца",Расходы[[#This Row],[Сумма]]/2,""))))))),0),""),"") -> 25 ₽ | G13: =IF(Расходы[[#This Row],[Месячная сумма]]<>"",Расходы[[#This Row],[Месячная сумма]]/Доходы,"") -> 0%
B14: Корм для собаки | C14: Проч. | D14: 60 ₽ | E14: Ежемесячно | F14: =IF(Расходы[[#This Row],[Сумма]]>0,IF(Расходы[[#This Row],[Периодичность]]<>"",ROUND(IF(Расходы[[#This Row],[Периодичность]]="Ежемесячно",Расходы[Сумма],IF(Расходы[[#This Row],[Периодичность]]="Еженедельно",Расходы[[#This Row],[Сумма]]*4,IF(Расходы[[#This Row],[Периодичность]]="Ежеквартально",Расходы[[#This Row],[Сумма]]/3,IF(Расходы[[#This Row],[Периодичность]]="Каждые 6 месяцев",Расходы[[#This Row],[Сумма]]/6,IF(Расходы[[#This Row],[Периодичность]]="За год",Расходы[[#This Row],[Сумма]]/12,IF(Расходы[[#This Row],[Периодичность]]="Каждые 2 недели",Расходы[[#This Row],[Сумма]]*2,IF(Расходы[[#This Row],[Периодичность]]="Каждые 2 месяца",Расходы[[#This Row],[Сумма]]/2,""))))))),0),""),"") -> 60 ₽ | G14: =IF(Расходы[[#This Row],[Месячная сумма]]<>"",Расходы[[#This Row],[Месячная сумма]]/Доходы,"") -> 1%
B15: Страхование домашнего питомца | C15: Проч. | D15: 70 ₽ | E15: За год | F15: =IF(Расходы[[#This Row],[Сумма]]>0,IF(Расходы[[#This Row],[Периодичность]]<>"",ROUND(IF(Расходы[[#This Row],[Периодичность]]="Ежемесячно",Расходы[Сумма],IF(Расходы[[#This Row],[Периодичность]]="Еженедельно",Расходы[[#This Row],[Сумма]]*4,IF(Расходы[[#This Row],[Периодичность]]="Ежеквартально",Расходы[[#This Row],[Сумма]]/3,IF(Расходы[[#This Row],[Периодичность]]="Каждые 6 месяцев",Расходы[[#This Row],[Сумма]]/6,IF(Расходы[[#This Row],[Периодичность]]="За год",Расходы[[#This Row],[Сумма]]/12,IF(Расходы[[#This Row],[Периодичность]]="Каждые 2 недели",Расходы[[#This Row],[Сумма]]*2,IF(Расходы[[#This Row],[Периодичность]]="Каждые 2 месяца",Расходы[[#This Row],[Сумма]]/2,""))))))),0),""),"") -> 6 ₽ | G15: =IF(Расходы[[#This Row],[Месячная сумма]]<>"",Расходы[[#This Row],[Месячная сумма]]/Доходы,"") -> 0%
B16: Продовольственные товары | C16: Еда | D16: 100 ₽ | E16: Еженедельно | F16: =IF(Расходы[[#This Row],[Сумма]]>0,IF(Расходы[[#This Row],[Периодичность]]<>"",ROUND(IF(Расходы[[#This Row],[Периодичность]]="Ежемесячно",Расходы[Сумма],IF(Расходы[[#This Row],[Периодичность]]="Еженедельно",Расходы[[#This Row],[Сумма]]*4,IF(Расходы[[#This Row],[Периодичность]]="Ежеквартально",Расходы[[#This Row],[Сумма]]/3,IF(Расходы[[#This Row],[Периодичность]]="Каждые 6 месяцев",Расходы[[#This Row],[Сумма]]/6,IF(Расходы[[#This Row],[Периодичность]]="За год",Расходы[[#This Row],[Сумма]]/12,IF(Расходы[[#This Row],[Периодичность]]="Каждые 2 недели",Расходы[[#This Row],[Сумма]]*2,IF(Расходы[[#This Row],[Периодичность]]="Каждые 2 месяца",Расходы[[#This Row],[Сумма]]/2,""))))))),0),""),"") -> 400 ₽ | G16: =IF(Расходы[[#This Row],[Месячная сумма]]<>"",Расходы[[#This Row],[Месячная сумма]]/Доходы,"") -> 7%
B17: Кофе | C17: Еда | D17: 25 ₽ | E17: Еженедельно | F17: =IF(Расходы[[#This Row],[Сумма]]>0,IF(Расходы[[#This Row],[Периодичность]]<>"",ROUND(IF(Расходы[[#This Row],[Периодичность]]="Ежемесячно",Расходы[Сумма],IF(Расходы[[#This Row],[Периодичность]]="Еженедельно",Расходы[[#This Row],[Сумма]]*4,IF(Расходы[[#This Row],[Периодичность]]="Ежеквартально",Расходы[[#This Row],[Сумма]]/3,IF(Расходы[[#This Row],[Периодичность]]="Каждые 6 месяцев",Расходы[[#This Row],[Сумма]]/6,IF(Расходы[[#This Row],[Периодичность]]="За год",Расходы[[#This Row],[Сумма]]/12,IF(Расходы[[#This Row],[Периодичность]]="Каждые 2 недели",Расходы[[#This Row],[Сумма]]*2,IF(Расходы[[#This Row],[Периодичность]]="Каждые 2 месяца",Расходы[[#This Row],[Сумма]]/2,""))))))),0),""),"") -> 100 ₽ | G17: =IF(Расходы[[#This Row],[Месячная сумма]]<>"",Расходы[[#This Row],[Месячная сумма]]/Доходы,"") -> 2%
B18: Альпинистское снаряжение | C18: Развлечения | D18: 170 ₽ | E18: За год | F18: =IF(Расходы[[#This Row],[Сумма]]>0,IF(Расходы[[#This Row],[Периодичность]]<>"",ROUND(IF(Расходы[[#This Row],[Периодичность]]="Ежемесячно",Расходы[Сумма],IF(Расходы[[#This Row],[Периодичность]]="Еженедельно",Расходы[[#This Row],[Сумма]]*4,IF(Расходы[[#This Row],[Периодичность]]="Ежеквартально",Расходы[[#This Row],[Сумма]]/3,IF(Расходы[[#This Row],[Периодичность]]="Каждые 6 месяцев",Расходы[[#This Row],[Сумма]]/6,IF(Расходы[[#This Row],[Периодичность]]="За год",Расходы[[#This Row],[Сумма]]/12,IF(Расходы[[#This Row],[Периодичность]]="Каждые 2 недели",Расходы[[#This Row],[Сумма]]*2,IF(Расходы[[#This Row],[Периодичность]]="Каждые 2 месяца",Расходы[[#This Row],[Сумма]]/2,""))))))),0),""),"") -> 14 ₽ | G18: =IF(Расходы[[#This Row],[Месячная сумма]]<>"",Расходы[[#This Row],[Месячная сумма]]/Доходы,"") -> 0%
B19: Абонемент в тренажерный зал | C19: Проч. | D19: 60 ₽ | E19: Ежемесячно | F19: =IF(Расходы[[#This Row],[Сумма]]>0,IF(Расходы[[#This Row],[Периодичность]]<>"",ROUND(IF(Расходы[[#This Row],[Периодичность]]="Ежемесячно",Расходы[Сумма],IF(Расходы[[#This Row],[Периодичность]]="Еженедельно",Расходы[[#This Row],[Сумма]]*4,IF(Расходы[[#This Row],[Периодичность]]="Ежеквартально",Расходы[[#This Row],[Сумма]]/3,IF(Расходы[[#This Row],[Периодичность]]="Каждые 6 месяцев",Расходы[[#This Row],[Сумма]]/6,IF(Расходы[[#This Row],[Периодичность]]="За год",Расходы[[#This Row],[Сумма]]/12,IF(Расходы[[#This Row],[Периодичность]]="Каждые 2 недели",Расходы[[#This Row],[Сумма]]*2,IF(Расходы[[#This Row],[Периодичность]]="Каждые 2 месяца",Расходы[[#This Row],[Сумма]]/2,""))))))),0),""),"") -> 60 ₽ | G19: =IF(Расходы[[#This Row],[Месячная сумма]]<>"",Расходы[[#This Row],[Месячная сумма]]/Доходы,"") -> 1%
B20: Наушники | C20: Развлечения | D20: 50 ₽ | E20: За год | F20: =IF(Расходы[[#This Row],[Сумма]]>0,IF(Расходы[[#This Row],[Периодичность]]<>"",ROUND(IF(Расходы[[#This Row],[Периодичность]]="Ежемесячно",Расходы[Сумма],IF(Расходы[[#This Row],[Периодичность]]="Еженедельно",Расходы[[#This Row],[Сумма]]*4,IF(Расходы[[#This Row],[Периодичность]]="Ежеквартально",Расходы[[#This Row],[Сумма]]/3,IF(Расходы[[#This Row],[Периодичность]]="Каждые 6 месяцев",Расходы[[#This Row],[Сумма]]/6,IF(Расходы[[#This Row],[Периодичность]]="За год",Расходы[[#This Row],[Сумма]]/12,IF(Расходы[[#This Row],[Периодичность]]="Каждые 2 недели",Расходы[[#This Row],[Сумма]]*2,IF(Расходы[[#This Row],[Периодичность]]="Каждые 2 месяца",Расходы[[#This Row],[Сумма]]/2,""))))))),0),""),"") -> 4 ₽ | G20: =IF(Расходы[[#This Row],[Месячная сумма]]<>"",Расходы[[#This Row],[Месячная сумма]]/Доходы,"") -> 0%
B21: Стрижка | C21: Проч. | D21: 70 ₽ | E21: Ежемесячно | F21: =IF(Расходы[[#This Row],[Сумма]]>0,IF(Расходы[[#This Row],[Периодичность]]<>"",ROUND(IF(Расходы[[#This Row],[Периодичность]]="Ежемесячно",Расходы[Сумма],IF(Расходы[[#This Row],[Периодичность]]="Еженедельно",Расходы[[#This Row],[Сумма]]*4,IF(Расходы[[#This Row],[Периодичность]]="Ежеквартально",Расходы[[#This Row],[Сумма]]/3,IF(Расходы[[#This Row],[Периодичность]]="Каждые 6 месяцев",Расходы[[#This Row],[Сумма]]/6,IF(Расходы[[#This Row],[Периодичность]]="За год",Расходы[[#This Row],[Сумма]]/12,IF(Расходы[[#This Row],[Периодичность]]="Каждые 2 недели",Расходы[[#This Row],[Сумма]]*2,IF(Расходы[[#This Row],[Периодичность]]="Каждые 2 месяца",Расходы[[#This Row],[Сумма]]/2,""))))))),0),""),"") -> 70 ₽ | G21: =IF(Расходы[[#This Row],[Месячная сумма]]<>"",Расходы[[#This Row],[Месячная сумма]]/Доходы,"") -> 1%
B22: Видеоигры | C22: Развлечения | D22: 100 ₽ | E22: Ежемесячно | F22: =IF(Расходы[[#This Row],[Сумма]]>0,IF(Расходы[[#This Row],[Периодичность]]<>"",ROUND(IF(Расходы[[#This Row],[Периодичность]]="Ежемесячно",Расходы[Сумма],IF(Расходы[[#This Row],[Периодичность]]="Еженедельно",Расходы[[#This Row],[Сумма]]*4,IF(Расходы[[#This Row],[Периодичность]]="Ежеквартально",Расходы[[#This Row],[Сумма]]/3,IF(Расходы[[#This Row],[Периодичность]]="Каждые 6 месяцев",Расходы[[#This Row],[Сумма]]/6,IF(Расходы[[#This Row],[Периодичность]]="За год",Расходы[[#This Row],[Сумма]]/12,IF(Расходы[[#This Row],[Периодичность]]="Каждые 2 недели",Расходы[[#This Row],[Сумма]]*2,IF(Расходы[[#This Row],[Периодичность]]="Каждые 2 месяца",Расходы[[#This Row],[Сумма]]/2,""))))))),0),""),"") -> 100 ₽ | G22: =IF(Расходы[[#This Row],[Месячная сумма]]<>"",Расходы[[#This Row],[Месячная сумма]]/Доходы,"") -> 2%
B23: Одежда | C23: Проч. | D23: 500 ₽ | E23: За год | F23: =IF(Расходы[[#This Row],[Сумма]]>0,IF(Расходы[[#This Row],[Периодичность]]<>"",ROUND(IF(Расходы[[#This Row],[Периодичность]]="Ежемесячно",Расходы[Сумма],IF(Расходы[[#This Row],[Периодичность]]="Еженедельно",Расходы[[#This Row],[Сумма]]*4,IF(Расходы[[#This Row],[Периодичность]]="Ежеквартально",Расходы[[#This Row],[Сумма]]/3,IF(Расходы[[#This Row],[Периодичность]]="Каждые 6 месяцев",Расходы[[#This Row],[Сумма]]/6,IF(Расходы[[#This Row],[Периодичность]]="За год",Расходы[[#This Row],[Сумма]]/12,IF(Расходы[[#This Row],[Периодичность]]="Каждые 2 недели",Расходы[[#This Row],[Сумма]]*2,IF(Расходы[[#This Row],[Периодичность]]="Каждые 2 месяца",Расходы[[#This Row],[Сумма]]/2,""))))))),0),""),"") -> 42 ₽ | G23: =IF(Расходы[[#This Row],[Месячная сумма]]<>"",Расходы[[#This Row],[Месячная сумма]]/Доходы,"") -> 1%

Sheet Данные (hidden)
A1: Этот лист должен оставаться скрытым
A2: Категории | B2: Сумма по категориям | C2: Процент от суммы | D2: Периодичность | E2: Сбережения
A3: Дом | B3: =IF(SUMIF(Расходы[Категория],"Дом",Расходы[Месячная сумма])>0,SUMIF(Расходы[Категория],"Дом",Расходы[Месячная сумма]),NA()) -> 1,660 ₽ | C3: =IF(B3>0,B3/Доходы,"") -> 29% | D3: Еженедельно | E3: =Доходы-SUM(Расходы[Месячная сумма]) -> 2,777 ₽
A4: Развлечения | B4: =IF(SUMIF(Расходы[Категория],"Развлечения",Расходы[Месячная сумма])>0,SUMIF(Расходы[Категория],"Развлечения",Расходы[Месячная сумма]),NA()) -> 188 ₽ | C4: 3% | D4: Ежемесячно
A5: Транспорт | B5: =IF(SUMIF(Расходы[Категория],"Транспорт",Расходы[Месячная сумма])>0,SUMIF(Расходы[Категория],"Транспорт",Расходы[Месячная сумма]),NA()) -> 350 ₽ | C5: 6% | D5: Ежеквартально
A6: Еда | B6: =IF(SUMIF(Расходы[Категория],"Еда",Расходы[Месячная сумма])>0,SUMIF(Расходы[Категория],"Еда",Расходы[Месячная сумма]),NA()) -> 500 ₽ | C6: 9% | D6: Каждые 6 месяцев
A7: Проч. | B7: =IF(SUMIF(Расходы[Категория],"Проч.",Расходы[Месячная сумма])>0,SUMIF(Расходы[Категория],"Проч.",Расходы[Месячная сумма]),NA()) -> 263 ₽ | C7: 5% | D7: За год
A8: Сбережения | B8: =IF(E3>0,E3,NA()) -> 2,777 ₽ | C8: 48% | D8: Каждые 2 недели
D9: Каждые 2 месяца
B10: ИТОГ: | C10: =SUM(C3:C8) -> 100%
